bitfinex-derivatives/quotes_ETHF0:USTF0_20241228
["timestamp","ask_amount","ask_price","bid_price","bid_amount"]
[1735352061673,0.29952,3343.5,3343.4,3.2078]
[1735352063974,0.29952,3343.5,3343.2,0.4644]
[1735352063975,3.2078,3343.5,3343.2,0.4644]
[1735352064176,3.2078,3343.5,3342.8,4.96473873]
[1735352064377,3.2078,3343.5,3342.8,5.39673873]
[1735352064571,0.29956,3343.1,3342.8,5.39673873]
[1735352065276,0.29956,3343.1,3342.8,0.73157]
[1735352067668,5.29648,3343.6,3342.8,0.432]
[1735352067874,0.29956,3343.1,3342.8,0.73158]
[1735352069478,0.29952,3343.5,3342.9,0.29957]
[1735352069679,0.29955,3343.2,3342.9,0.29957]
[1735352070177,4.5477,3343.6,3342.9,0.29957]
[1735352070482,0.29955,3343.1,3342.8,0.73157]
[1735352070883,0.29955,3343.1,3342.9,0.29957]
[1735352071280,0.29955,3343.1,3342.8,0.432]
[1735352071481,0.29955,3343.1,3342.8,0.73157]
[1735352072479,0.29956,3343.0,3342.8,0.432]
[1735352072679,4.5477,3343.6,3342.8,0.432]
[1735352072881,0.29956,3343.1,3342.8,0.73158]
[1735352073480,4.5477,3343.6,3342.8,0.432]
[1735352073780,0.29957,3342.9,3342.8,0.432]
[1735352075388,0.29955,3343.2,3342.9,0.29957]
[1735352076685,0.29956,3343.1,3342.8,3.00335686]
[1735352076889,0.29956,3343.1,3342.9,0.29957]
[1735352077186,0.29956,3343.1,3342.8,0.432]
[1735352077788,0.29956,3343.1,3342.8,0.73157]
[1735352078880,0.29955,3343.2,3342.9,0.29957]
[1735352079080,0.29955,3343.2,3343.0,0.29956]
[1735352080182,0.29955,3343.2,3342.8,0.432]
[1735352080382,0.29955,3343.2,3342.9,0.29957]
[1735352080692,0.29956,3343.0,3342.8,0.73157]
[1735352083178,4.5477,3343.6,3342.8,0.73157]
[1735352083384,0.29956,3343.1,3342.8,0.73157]
[1735352084792,0.29956,3343.1,3342.8,0.73158]
[1735352084979,0.29956,3343.1,3342.9,0.29957]
[1735352085179,0.29957,3343.0,3342.8,0.432]
[1735352085383,0.73357,3342.9,3342.8,0.432]
[1735352088089,0.434,3342.9,3342.8,0.432]
[1735352089890,0.29955,3343.1,3342.8,0.73157]
[1735352091000,0.29955,3343.1,3342.9,0.29957]
[1735352091490,0.29957,3343.0,3342.8,0.432]
[1735352093693,0.29956,3343.1,3342.8,0.73158]
[1735352093998,0.4405,3343.5,3342.8,0.432]
[1735352094296,0.29957,3343.0,3342.8,0.432]
[1735352096702,0.4305,3342.9,3342.8,0.432]
[1735352097697,0.4305,3342.9,3342.8,0.73158]
[1735352098519,0.4305,3342.9,3342.8,0.432]
[1735352100119,0.4305,3342.9,3342.8,0.73158]
[1735352101018,0.4305,3342.9,3342.8,0.432]
[1735352102219,0.4305,3342.9,3342.8,5.39674873]
[1735352102620,0.4305,3342.9,3342.8,5.09716873]
[1735352103227,0.4305,3342.9,3342.8,5.39674873]
[1735352105812,0.4305,3342.9,3342.8,5.09716873]
[1735352106417,0.73007,3342.9,3342.8,4.66516873]
[1735352107323,0.73007,3342.9,3342.8,1.83116874]
[1735352107522,0.29959,3342.7,3342.6,6.99460563]
[1735352107719,4.5832387,3342.7,3342.6,6.99460563]
[1735352108020,0.29962,3342.3,3342.2,6.99460563]
[1735352108823,0.29962,3342.3,3342.2,8.07045433]
[1735352109019,3.2078,3342.7,3342.2,8.07045433]
[1735352109322,0.29962,3342.3,3342.2,1.0758487]
[1735352109715,0.29962,3342.3,3342.1,0.29964]
[1735352111125,0.29962,3342.3,3342.0,0.75015]
[1735352111424,0.29962,3342.3,3342.0,3.95795]
[1735352112224,0.29962,3342.3,3342.0,3.6583]
[1735352112522,0.29961,3342.5,3342.2,0.29963]
[1735352112823,0.29961,3342.5,3342.3,0.72922]
[1735352113020,0.29961,3342.5,3342.4,0.4308]
[1735352113225,0.29964,3342.1,3342.0,0.4505]
[1735352116626,3.2078,3342.3,3341.6,0.4296]
[1735352116924,0.29968,3341.7,3341.5,3.2078]
[1735352117921,0.29967,3341.8,3341.5,3.2078]
[1735352118122,0.29965,3342.1,3341.7,0.29967]
[1735352118319,0.29965,3342.1,3341.8,1.3181]
[1735352119224,0.29965,3342.1,3341.8,1.61777]
[1735352120127,0.29964,3342.2,3341.9,0.29966]
[1735352121426,0.29963,3342.3,3342.0,0.29965]
[1735352121627,0.29962,3342.4,3342.1,0.29964]
[1735352122926,0.29963,3342.3,3341.9,3.2078]
[1735352123232,0.29963,3342.3,3342.1,0.29964]
[1735352123429,0.464,3342.7,3342.3,0.29962]
[1735352123630,0.29956,3343.0,3342.8,0.29958]
[1735352123831,0.29956,3343.1,3342.9,0.76187]
[1735352124131,0.29956,3343.1,3343.0,0.4391]
[1735352127528,3.2078,3343.3,3343.0,0.4391]
[1735352127722,0.29955,3343.2,3343.0,1.20095]
[1735352132038,0.29955,3343.1,3343.0,0.9014]
[1735352138242,0.29955,3343.1,3343.0,0.4391]
[1735352140150,0.4651,3343.2,3342.9,0.4623]
[1735352140351,0.29958,3342.8,3342.7,3.2078]
[1735352140845,3.2078,3342.9,3342.4,0.4616]
[1735352141047,0.29961,3342.5,3342.4,0.4616]
[1735352142651,0.29961,3342.5,3342.1,3.6771]
[1735352142652,0.29963,3342.2,3342.1,0.4693]
[1735352143747,0.29963,3342.3,3342.2,0.29963]
[1735352144643,0.29963,3342.3,3342.1,0.4693]
[1735352144843,0.29963,3342.3,3342.1,0.76894]
[1735352145551,0.29963,3342.2,3342.1,0.4693]
[1735352146440,0.7345,3342.6,3341.9,0.438]
[1735352146745,0.29965,3342.0,3341.9,0.4388]
[1735352149645,3.95682,3342.5,3341.9,0.4388]
[1735352149646,3.2078,3342.5,3341.9,0.4388]
[1735352149846,0.29962,3342.4,3342.1,0.29963]
[1735352150143,0.29962,3342.4,3342.2,0.4502]
[1735352150343,0.29962,3342.4,3342.3,0.4645]
[1735352151550,3.50741,3342.5,3342.3,0.76412]
[1735352151756,0.4255,3342.7,3342.3,0.4645]
[1735352151947,0.29962,3342.4,3342.3,0.4645]
[1735352152952,0.4255,3342.7,3342.3,0.4645]
[1735352153253,0.29961,3342.5,3342.3,0.76412]
[1735352154352,3.2078,3342.9,3342.3,0.4645]
[1735352154559,0.2996,3342.7,3342.5,0.2996]
[1735352154751,0.2996,3342.6,3342.5,0.2996]
[1735352155356,0.29962,3342.4,3342.3,0.4645]
[1735352155751,3.2078,3342.9,3342.3,0.4645]
[1735352155952,0.2996,3342.6,3342.4,0.29961]
[1735352156458,0.29961,3342.5,3342.4,0.29961]
[1735352156855,0.29962,3342.4,3342.3,0.4645]
[1735352159755,3.2078,3342.9,3342.3,0.4645]
[1735352159952,0.29959,3342.8,3342.6,0.29959]
[1735352160154,0.29959,3342.7,3342.6,0.29959]
[1735352160651,0.29961,3342.5,3342.4,0.4279]
[1735352161153,0.2996,3342.6,3342.5,0.29961]
[1735352161657,0.2996,3342.6,3342.4,0.72751]
[1735352162863,0.2996,3342.6,3342.4,0.4279]
[1735352164460,0.2996,3342.7,3342.4,0.72751]
[1735352164762,0.2996,3342.6,3342.4,0.72751]
[1735352164956,3.2078,3342.9,3342.4,0.4279]
[1735352165160,0.29958,3342.8,3342.6,0.2996]
[1735352165765,0.29958,3342.8,3342.4,0.4279]
[1735352165967,0.29958,3342.8,3342.5,0.2996]
[1735352166866,3.2078,3342.9,3342.7,0.29959]
[1735352166867,3.50738,3342.9,3342.7,0.29959]
[1735352167063,3.50738,3342.9,3342.8,0.43]
[1735352167566,3.2078,3342.9,3342.8,0.72958]
[1735352167763,0.29957,3343.0,3342.8,0.43]
[1735352167959,3.6582,3343.5,3342.9,0.73687]
[1735352168164,2.4431725,3343.7,3343.1,0.29955]
[1735352168165,0.29953,3343.4,3343.1,0.29955]
[1735352168663,0.29952,3343.5,3343.2,0.29954]
[1735352168861,0.29952,3343.5,3343.3,0.43]
[1735352169057,0.29952,3343.5,3343.4,0.4373]
[1735352169464,0.46910554,3343.7,3343.4,0.73682]
[1735352169661,0.29951,3343.6,3343.4,0.73682]
[1735352170067,0.29951,3343.6,3343.5,0.4615]
[1735352170565,0.29953,3343.4,3343.3,0.43]
[1735352171270,0.29952,3343.5,3343.3,0.72953]
[1735352171456,0.16959554,3343.7,3343.3,0.43]
[1735352171660,0.29953,3343.4,3343.3,0.43]
[1735352172160,0.29952,3343.5,3343.3,0.43]
[1735352172666,0.29953,3343.4,3343.3,0.43]
[1735352173064,0.16959554,3343.7,3343.3,0.43]
[1735352173260,0.29952,3343.6,3343.3,0.72953]
[1735352173566,0.16959554,3343.7,3343.3,0.43]
[1735352173865,0.29951,3343.6,3343.4,0.29952]
[1735352175559,0.4266,3343.9,3343.4,0.29952]
[1735352175761,3.2078,3344.0,3343.3,0.43]
[1735352176067,3.2078,3344.0,3343.4,0.29953]
[1735352176265,0.2995,3343.7,3343.4,0.29953]
[1735352176666,0.29952,3343.5,3343.3,0.72953]
[1735352177071,0.29951,3343.6,3343.4,0.29953]
[1735352177371,0.2995,3343.7,3343.5,0.29951]
[1735352177662,0.29952,3343.5,3343.3,0.72953]
[1735352178264,3.2078,3344.0,3343.6,0.29951]
[1735352178265,0.29949,3343.8,3343.6,0.29951]
[1735352178566,0.29949,3343.8,3343.7,0.433]
[1735352178767,0.29949,3343.8,3343.7,0.9013]
[1735352180970,0.29949,3343.8,3343.7,0.4683]
[1735352181268,0.29952,3343.5,3343.3,1.17553]
[1735352181468,0.29952,3343.5,3343.4,0.4706]
[1735352182167,0.29952,3343.5,3343.4,0.77013]
[1735352183371,0.4699,3343.7,3343.4,0.77013]
[1735352183570,0.4699,3343.7,3343.4,0.4706]
[1735352183571,0.29952,3343.6,3343.4,0.4706]
[1735352183770,0.29952,3343.6,3343.5,0.29952]
[1735352184666,3.2078,3344.0,3343.4,0.4706]
[1735352184867,3.2078,3344.0,3343.7,0.29949]
[1735352184868,0.29948,3343.9,3343.7,0.29949]
[1735352185067,0.29948,3343.9,3343.8,0.8698]
[1735352187474,0.29952,3343.5,3343.4,0.4706]
[1735352188577,3.2078,3344.0,3343.4,0.4706]
[1735352188774,3.2078,3344.0,3343.6,0.2995]
[1735352188775,0.2995,3343.8,3343.6,0.2995]
[1735352188981,3.2078,3344.0,3343.6,0.2995]
[1735352189165,0.2995,3343.7,3343.6,0.2995]
[1735352189371,0.29948,3343.9,3343.5,0.29951]
[1735352189571,0.2995,3343.7,3343.5,0.29951]
[1735352190384,0.2995,3343.7,3343.4,0.9058]
[1735352190676,0.29949,3343.8,3343.7,0.2995]
[1735352191876,0.2995,3343.7,3343.6,0.2995]
[1735352192076,0.29952,3343.5,3343.4,0.9058]
[1735352193081,0.29952,3343.5,3343.4,0.4352]
[1735352193279,3.2078,3343.5,3342.9,0.8856]
[1735352193482,0.29955,3343.1,3343.0,0.4284]
[1735352196377,0.29956,3343.0,3342.9,1.194]
[1735352198481,0.29958,3342.8,3342.7,0.4397]
[1735352198774,0.29962,3342.4,3342.3,0.4703]
[1735352199585,0.29964,3342.1,3342.0,0.4586]
[1735352200570,0.441,3342.3,3341.9,0.4703]
[1735352200877,0.29965,3342.0,3341.9,0.4703]
[1735352201478,5.92237696,3342.3,3341.5,0.4672]
[1735352201675,0.29969,3341.6,3341.5,0.8988]
[1735352202271,0.29969,3341.6,3341.5,0.4316]
[1735352203680,3.899,3341.9,3341.2,3.2078]
[1735352203681,0.29971,3341.3,3341.2,3.2078]
[1735352206276,3.50746,3341.9,3341.5,0.29969]
[1735352206483,3.2078,3341.9,3341.6,0.29968]
[1735352206682,3.50746,3341.9,3341.7,0.911]
[1735352206883,0.29967,3341.8,3341.7,0.911]
[1735352207477,0.29967,3341.8,3341.7,0.4399]
[1735352210484,0.29971,3341.4,3341.2,3.2078]
[1735352210685,0.29971,3341.4,3341.2,3.6786]
[1735352210881,0.29971,3341.3,3341.2,3.6786]
[1735352212482,2.73567696,3341.7,3340.8,0.4373]
[1735352212682,2.73567696,3341.7,3340.8,0.4588]
[1735352212683,0.29976,3340.9,3340.8,0.4588]
[1735352222106,5.48137696,3341.4,3340.6,3.2078]
[1735352222107,0.29977,3340.7,3340.6,3.2078]
[1735352222399,3.2078,3341.0,3340.4,0.4619]
[1735352222400,0.29979,3340.5,3340.4,0.4619]
[1735352222897,0.2998,3340.3,3340.2,0.4371]
[1735352223098,3.6708,3340.6,3340.0,0.4619]
[1735352223299,2.27357696,3340.5,3340.0,0.4619]
[1735352223597,0.29982,3340.1,3340.0,0.4619]
[1735352223898,3.50762,3340.1,3340.0,0.4619]
[1735352224492,0.29982,3340.1,3340.0,0.4619]
[1735352225196,0.29984,3339.9,3339.3,3.2078]
[1735352225396,0.29984,3339.9,3339.7,0.76036]
[1735352225597,0.29984,3339.9,3339.7,0.4605]
[1735352226096,6.23085696,3340.5,3339.7,0.4605]
[1735352226300,0.29979,3340.4,3339.7,0.4605]
[1735352226501,0.29984,3340.0,3339.7,0.4605]
[1735352226700,0.29984,3339.9,3339.7,0.4605]
[1735352227199,0.29984,3340.0,3339.7,0.76036]
[1735352228400,0.29984,3340.0,3339.7,0.4605]
[1735352228599,5.48137696,3340.5,3339.7,0.4605]
[1735352228796,0.29983,3340.0,3339.7,0.76035]
[1735352229289,5.48137696,3340.5,3339.7,0.4605]
[1735352229499,0.29982,3340.2,3339.9,0.29984]
[1735352229695,0.29982,3340.2,3339.7,0.4605]
[1735352229696,0.29982,3340.1,3339.8,0.29984]
[1735352229901,0.29982,3340.1,3339.9,0.4375]
[1735352230296,0.2998,3340.3,3340.0,0.29983]
[1735352230503,0.29977,3340.8,3340.0,0.29983]
[1735352230806,0.29977,3340.8,3340.5,0.29978]
[1735352231004,3.2078,3340.9,3340.7,0.29976]
[1735352231304,3.2078,3340.9,3340.6,0.8716]
[1735352231305,3.50755,3340.9,3340.6,1.17137]
[1735352232010,3.50755,3340.9,3340.6,0.8716]
[1735352232298,3.2078,3340.9,3340.6,0.8716]
[1735352232504,0.29976,3340.8,3340.6,0.8716]
[1735352232709,3.50756,3340.9,3340.7,0.29976]
[1735352233099,3.50755,3340.9,3340.7,0.29976]
[1735352233393,3.50755,3340.9,3340.6,0.8716]
[1735352233394,0.29976,3340.8,3340.6,0.8716]
[1735352233599,0.29976,3340.8,3340.6,1.17137]
[1735352234003,3.50756,3340.9,3340.7,0.29976]
[1735352234804,0.29972,3341.2,3341.0,0.29973]
[1735352235205,0.29974,3341.1,3340.9,0.29974]
[1735352235605,3.2078,3341.3,3340.7,0.4582]
[1735352235807,3.50752,3341.3,3341.1,0.29973]
[1735352235996,3.50752,3341.3,3341.2,0.4697]
[1735352239608,3.2078,3341.3,3340.9,0.29975]
[1735352239804,0.29974,3341.0,3340.8,0.76055]
[1735352240715,0.29974,3341.0,3340.8,0.4608]
[1735352240911,0.29974,3341.0,3340.9,0.29975]
[1735352242522,0.29974,3341.1,3340.9,0.29975]
[1735352243620,0.29974,3341.1,3341.0,0.29974]
[1735352244018,0.29974,3341.0,3340.9,0.29974]
[1735352244732,0.29974,3341.0,3340.8,0.4608]
[1735352244929,3.2078,3341.3,3340.6,0.4282]
[1735352245227,0.29977,3340.7,3340.6,0.4282]
[1735352245531,0.2998,3340.3,3340.2,7.84381684]
[1735352245732,0.2998,3340.3,3340.2,8.28761684]
[1735352245929,0.2998,3340.3,3340.2,3.6516]
[1735352247426,0.2998,3340.3,3340.2,0.4438]
[1735352250733,3.5076,3340.3,3340.2,0.4438]
[1735352252232,3.2078,3340.3,3340.0,0.4261]
[1735352252534,0.29982,3340.1,3340.0,0.4261]
[1735352258336,3.2078,3341.0,3340.0,3.6339]
[1735352258542,0.29978,3340.6,3340.4,0.29979]
[1735352258734,0.29978,3340.6,3340.5,0.8824]
[1735352260440,0.29981,3340.2,3340.1,0.29982]
[1735352260739,0.29981,3340.2,3340.1,0.8824]
[1735352262938,0.29986,3339.7,3339.6,3.2078]
[1735352263137,5.48137696,3339.8,3339.4,4.63601684]
[1735352263336,0.29988,3339.5,3339.4,4.63601684]
[1735352263734,0.29988,3339.5,3339.3,0.461]
[1735352263735,5.48137696,3339.8,3339.3,0.461]
[1735352263934,0.29988,3339.4,3339.3,0.461]
[1735352264136,0.29988,3339.5,3339.3,0.76089]
[1735352264342,0.29988,3339.4,3339.3,0.461]
[1735352264637,0.29988,3339.5,3339.3,0.461]
[1735352264841,0.29986,3339.7,3339.4,0.29988]
[1735352265039,0.29987,3339.6,3339.4,0.29988]
[1735352265233,3.2078,3339.8,3339.3,0.461]
[1735352265435,3.2078,3339.8,3339.7,0.29986]
[1735352268342,0.29984,3340.0,3339.5,3.2078]
[1735352269044,3.2078,3340.4,3339.5,3.2078]
[1735352269245,0.29981,3340.3,3340.1,0.29982]
[1735352269440,0.29981,3340.3,3340.2,1.3851]
[1735352275045,0.29981,3340.3,3340.2,1.68491]
[1735352275643,0.29981,3340.3,3340.2,1.3851]
[1735352276042,0.29979,3340.5,3340.2,1.3851]
[1735352276242,0.29978,3340.7,3340.5,0.29978]
[1735352276436,3.2078,3340.8,3340.7,0.29977]
[1735352277844,0.46946262,3341.1,3340.8,0.29975]
[1735352278139,0.29974,3341.0,3340.9,1.3227]
[1735352279943,0.29974,3341.0,3340.9,0.884]
[1735352280249,0.29974,3341.0,3340.9,0.4444]
[1735352283649,2.44330958,3341.1,3340.4,0.4616]
[1735352283860,0.29979,3340.5,3340.4,0.4616]
[1735352284155,2.27357696,3340.7,3340.2,0.4591]
[1735352284345,0.2998,3340.3,3340.2,0.4591]
[1735352284744,0.29983,3340.0,3339.8,10.20240563]
[1735352285250,0.29984,3339.9,3339.8,3.2078]
[1735352285642,0.471,3340.3,3339.7,0.4591]
[1735352285643,0.29985,3339.8,3339.7,0.4591]
[1735352285854,0.29986,3339.7,3339.6,4.63601684]
[1735352286154,3.50766,3339.7,3339.6,4.63601684]
[1735352286354,4.114,3339.7,3339.1,0.4522]
[1735352286551,0.2999,3339.2,3339.1,0.4522]
[1735352286950,2.27357696,3339.5,3339.1,0.4522]
[1735352287153,0.29989,3339.3,3339.1,0.75211]
[1735352287549,0.2999,3339.2,3339.1,0.4522]
[1735352289152,4.114,3339.7,3339.1,0.4522]
[1735352289347,0.2999,3339.3,3339.1,0.75211]
[1735352289846,0.2999,3339.2,3339.1,0.4522]
[1735352293558,8.41737696,3340.1,3339.1,0.4522]
[1735352293867,0.29986,3339.8,3339.5,0.29987]
[1735352294053,0.29984,3339.9,3339.7,0.29985]
[1735352294261,0.29982,3340.2,3340.0,0.29983]
[1735352294850,2.27357696,3340.4,3339.8,0.869]
[1735352295055,0.29982,3340.2,3340.0,0.29983]
[1735352295255,2.27357696,3340.4,3339.8,0.869]
[1735352295554,2.27357696,3340.4,3340.0,0.29983]
[1735352295555,0.29982,3340.2,3340.0,0.29983]
[1735352296264,2.27357696,3340.4,3339.8,0.869]
[1735352296563,0.29981,3340.3,3340.1,0.29982]
[1735352296760,0.29981,3340.3,3339.8,0.869]
[1735352296761,2.27357696,3340.4,3339.8,0.869]
[1735352297364,0.29983,3340.0,3339.8,1.16884]
[1735352297757,0.29982,3340.2,3340.0,0.29983]
[1735352298253,3.2078,3340.5,3339.8,0.869]
[1735352298461,3.2078,3340.9,3340.1,3.2078]
[1735352298653,3.2078,3340.9,3340.1,4.4018]
[1735352298859,0.29978,3340.6,3340.1,4.4018]
[1735352299162,2.27357696,3340.7,3340.1,4.4018]
[1735352299361,0.2998,3340.4,3340.1,4.70162]
[1735352299764,0.2998,3340.4,3340.2,0.29981]
[1735352300856,0.29981,3340.2,3340.1,4.4018]
[1735352301255,2.27357696,3340.7,3340.1,4.4018]
[1735352301455,3.2078,3340.9,3340.1,4.4018]
[1735352301661,3.2078,3340.9,3340.4,0.29979]
[1735352301662,0.29978,3340.7,3340.4,0.29979]
[1735352301862,0.29978,3340.6,3340.5,0.4333]
[1735352302059,0.29978,3340.6,3340.5,0.8742]
[1735352303456,3.2078,3340.9,3340.7,0.29976]
[1735352303657,0.29974,3341.1,3340.6,0.4526]
[1735352303863,0.29974,3341.1,3340.8,0.29975]
[1735352304261,0.29974,3341.1,3340.6,0.4526]
[1735352304463,3.2078,3341.8,3340.9,3.2078]
[1735352304653,0.29969,3341.7,3341.0,0.29974]
[1735352304856,0.29969,3341.7,3341.3,0.29971]
[1735352305053,0.29969,3341.7,3341.4,1.1786]
[1735352305562,0.29967,3341.8,3341.4,1.1786]
[1735352305766,0.29968,3341.7,3341.4,0.8789]
[1735352305956,0.29968,3341.8,3341.4,0.8789]
[1735352306156,0.29968,3341.8,3341.5,0.29969]
[1735352306665,0.29968,3341.8,3341.4,0.8789]
[1735352306965,0.29968,3341.8,3341.4,1.1786]
[1735352307463,0.29964,3342.1,3341.4,0.8789]
[1735352307660,0.29964,3342.1,3341.5,0.4513]
[1735352307968,3.50744,3342.2,3341.8,0.29967]
[1735352308669,3.2078,3342.2,3341.5,0.4513]
[1735352308866,0.29965,3342.1,3341.5,0.4513]
[1735352309069,3.2078,3342.2,3342.1,0.29964]
[1735352309269,2.74286029,3342.5,3341.5,7.72487696]
[1735352309270,2.27357696,3343.1,3342.4,0.29961]
[1735352309561,0.29958,3342.9,3342.6,0.2996]
[1735352309761,2.27357696,3343.1,3342.5,0.9285]
[1735352309963,0.29959,3342.7,3342.5,0.9285]
[1735352310964,0.2996,3342.6,3342.5,0.4654]
[1735352317675,0.29964,3342.1,3342.0,3.2078]
[1735352317873,0.29967,3341.8,3341.6,0.75949]
[1735352319281,4.21953,3342.5,3341.8,0.29967]
[1735352319282,0.29965,3342.1,3341.8,0.29967]
[1735352319577,0.29965,3342.0,3341.7,0.74037]
[1735352319972,5.48137696,3342.5,3341.7,0.4407]
[1735352320377,0.29967,3341.8,3341.7,0.4407]
[1735352322077,0.29965,3342.0,3341.7,0.4407]
[1735352322286,0.29965,3342.0,3341.7,0.74037]
[1735352322482,0.29965,3342.0,3341.7,1.19797]
[1735352322681,0.29966,3341.9,3341.7,0.4407]
[1735352323481,2.27357696,3342.5,3341.7,0.4407]
[1735352323676,0.29967,3341.8,3341.7,0.4407]
[1735352324183,0.29966,3341.9,3341.7,0.4407]
[1735352324975,0.29962,3342.4,3341.7,0.4407]
[1735352325179,0.29964,3342.2,3341.9,0.29966]
[1735352325381,3.2078,3342.6,3341.9,0.29966]
[1735352325582,0.29965,3342.1,3341.8,0.29967]
[1735352325783,0.29966,3341.9,3341.7,0.4407]
[1735352326986,2.27357696,3342.5,3341.7,0.4407]
[1735352327286,0.29967,3341.8,3341.7,0.4407]
[1735352328785,3.2078,3342.2,3341.6,0.4598]
[1735352328989,0.29968,3341.7,3341.6,0.4598]
[1735352333890,0.29967,3341.8,3341.6,0.4598]
[1735352334287,3.2078,3342.1,3341.6,0.4598]
[1735352334488,3.2078,3342.5,3341.6,3.6676]
[1735352334696,0.29963,3342.2,3342.0,0.29964]
[1735352334992,0.29963,3342.2,3342.1,0.4263]
[1735352336692,0.29963,3342.3,3342.1,0.4263]
[1735352336888,5.48137696,3342.5,3342.1,0.4263]
[1735352337095,0.29963,3342.2,3342.1,0.4263]
[1735352337294,5.48137696,3342.5,3341.6,3.6676]
[1735352337499,0.29967,3341.8,3341.7,0.4334]
[1735352338385,0.4383,3342.1,3341.7,0.4334]
[1735352338583,6.23040696,3342.5,3341.8,0.29966]
[1735352338799,0.29965,3342.1,3341.8,0.29967]
[1735352339185,5.48137696,3342.5,3341.7,0.73307]
[1735352339389,0.29967,3341.8,3341.7,0.4334]
[1735352339891,0.29966,3341.9,3341.7,0.4334]
[1735352340395,2.27357696,3342.2,3341.7,0.4334]
[1735352340599,0.29965,3342.0,3341.8,0.29967]
[1735352341193,6.23040696,3342.5,3341.7,0.4334]
[1735352341389,0.29967,3341.8,3341.7,0.4334]
[1735352342092,2.27357696,3341.9,3341.2,4.4008]
[1735352342288,0.29971,3341.4,3341.3,0.4658]
[1735352343197,0.4363,3341.7,3341.3,0.4658]
[1735352343397,0.2997,3341.5,3341.3,0.76551]
[1735352343691,0.4363,3341.7,3341.3,0.4658]
[1735352343999,0.29971,3341.4,3341.3,0.4658]
[1735352344392,2.27357696,3341.9,3341.3,0.4658]
[1735352344599,0.29971,3341.4,3341.3,0.4658]
[1735352345995,0.2997,3341.5,3341.3,0.76551]
[1735352346194,0.2997,3341.4,3341.3,0.4658]
[1735352351798,3.2078,3342.0,3341.3,0.4658]
[1735352352105,0.29966,3341.9,3341.8,0.29966]
[1735352352397,0.29964,3342.2,3342.0,0.29964]
[1735352352598,0.29964,3342.2,3342.1,0.4357]
[1735352353100,8.2530103,3342.5,3342.1,0.4357]
[1735352353300,0.29963,3342.3,3342.1,0.73534]
[1735352354395,0.29963,3342.3,3342.1,0.4357]
[1735352354697,5.90567696,3342.8,3342.1,0.4357]
[1735352354894,5.90567696,3342.8,3342.3,0.29962]
[1735352354895,0.2996,3342.6,3342.3,0.29962]
[1735352355097,0.29959,3342.7,3342.2,0.4636]
[1735352355297,0.29962,3342.4,3342.2,0.4636]
[1735352355601,0.29962,3342.4,3342.2,0.76323]
[1735352356197,5.90567696,3342.8,3342.2,0.4636]
[1735352356397,0.29962,3342.4,3342.2,0.4636]
[1735352356803,0.29962,3342.4,3342.2,0.76323]
[1735352360505,0.29962,3342.4,3342.2,0.4636]
[1735352361005,0.29961,3342.5,3342.2,0.76323]
[1735352361206,2.69787696,3342.8,3342.2,0.4636]
[1735352361404,0.29962,3342.4,3342.2,0.4636]
[1735352361600,0.29962,3342.3,3342.2,0.4636]
[1735352364905,0.29961,3342.5,3342.2,0.76323]
[1735352365106,3.2078,3342.7,3342.2,0.4636]
[1735352365308,0.29962,3342.4,3342.2,0.4636]
[1735352366309,0.29962,3342.3,3342.2,0.4636]
[1735352366510,3.2078,3342.7,3342.2,0.4636]
[1735352366707,0.29962,3342.4,3342.1,0.29964]
[1735352368211,0.29962,3342.4,3342.2,0.29963]
[1735352369999,0.29961,3342.5,3342.0,3.2078]
[1735352370203,0.29961,3342.5,3342.3,0.29962]
[1735352370807,0.29962,3342.3,3342.1,0.29964]
[1735352372209,0.29963,3342.3,3342.1,0.29964]
[1735352373308,3.2078,3342.7,3342.0,3.2078]
[1735352373508,0.29962,3342.4,3342.2,0.29963]
[1735352374417,3.2078,3342.7,3342.0,3.2078]
[1735352374608,0.29963,3342.3,3342.1,0.29964]
[1735352375413,2.27357696,3342.8,3341.7,5.82901684]
[1735352375709,3.2078,3342.1,3341.6,4.63601684]
[1735352375921,0.29968,3341.7,3341.6,4.63601684]
[1735352376707,0.29971,3341.4,3341.2,1.193]
[1735352377215,0.2997,3341.5,3341.2,1.49272]
[1735352377411,0.29971,3341.4,3341.2,1.49272]
[1735352378309,0.2997,3341.5,3341.2,0.29972]
[1735352381119,2.27357696,3341.9,3340.7,7.98071542]
[1735352381415,0.29972,3341.3,3341.1,0.29973]
[1735352382812,0.29971,3341.4,3341.1,0.29973]
[1735352384819,2.27357696,3341.9,3340.7,7.98071542]
[1735352385021,0.2997,3341.5,3341.2,0.29972]
[1735352385620,0.29971,3341.4,3341.2,0.29972]
[1735352386420,3.2078,3341.8,3341.2,0.29972]
[1735352386613,3.2078,3341.8,3341.0,3.2078]
[1735352386815,3.2078,3341.8,3341.6,0.29968]
[1735352387516,3.2078,3341.8,3341.7,0.29968]
[1735352388418,3.2078,3341.8,3341.0,3.2078]
[1735352388625,3.2078,3341.8,3341.0,7.84381684]
[1735352388926,0.2997,3341.5,3341.2,0.29972]
[1735352389116,0.29971,3341.4,3341.2,0.29972]
[1735352389421,3.2078,3341.8,3341.3,0.29971]
[1735352389820,3.2078,3341.8,3341.0,3.2078]
[1735352390011,0.2997,3341.5,3341.2,0.29972]
[1735352390416,0.29971,3341.3,3341.0,3.2078]
[1735352390614,0.29971,3341.3,3341.0,3.50754]
[1735352393728,0.29971,3341.3,3341.1,0.29973]
[1735352393928,0.29971,3341.4,3341.1,0.29973]